Cogmind - Beta 14 @@@ ROGUE MODE // 2024.11.15 @ 19:07:31 Player: Fangrelle Result: Destroyed by H-61 Shepherd with Heavy Assault Cannon Performance ------------- Evolutions (2) 1000 Regions Visited (5) 1000 Robots Destroyed (66) 330 Value Destroyed (2003) 2003 Prototype IDs (30) 600 Alien Tech Used (0) 0 Bonus (163) 163 TOTAL SCORE: 5096 Bonus ------- High Alert Combat Kills 81 Follower Combat Kills 82 Cogmind --------- Core Integrity 0/550 Matter 275/300 Energy 209/265 System Corruption 4% Temperature Warm (178) Movement Treading (800) Ox8 Location -8/Materials Parts ------- > --- POWER (1) -------- Reinforced Ion Engine > --- PROPULSION (2) --- Light Treads > --- UTILITY (6) ------ Improved Heat Sink Cargo Storage Unit Advanced Visual Processing Unit Hacking Suite System Shield > --- WEAPON (2) ------- Plasma Cannon Plasma Cannon > --- INVENTORY (30) --- Makeshift Leg Improved Hover Unit High-capacity Storage Unit Advanced Visual Processing Unit Advanced Visual Processing Unit Experimental Sensor Array Light Armor Plating Hacking Suite Hacking Suite EM Pulse Gun Plasma Cannon Gauss Rifle Makeshift Shrapnel Gun XL Autogun Array Grenade Launcher Datajack Makeshift Hammer Makeshift Spear Peak State ------------ > --- POWER ------------ Deuterium Engine > --- PROPULSION ------- Light Treads Advanced Treads > --- UTILITY ---------- Cargo Storage Unit Makeshift Transmission Jammer Hacking Suite System Shield > --- WEAPON ----------- Makeshift Hammer Makeshift Spear > --- INVENTORY -------- Light Treads Light Treads Makeshift Leg Compact Wheel Armored Wheel Improved Heat Sink High-capacity Storage Unit Advanced Visual Processing Unit Experimental Sensor Array Hacking Suite Hacking Suite EM Pulse Gun Plasma Cannon Plasma Cannon Plasma Cannon Plasma Cannon Gauss Rifle Makeshift Shrapnel Gun XL Autogun Array Heavy Assault Cannon Grenade Launcher Datajack [Rating: 38] Favorites ----------- Power Ion Engine Engine Ion Engine Power Core Light Nuclear Core Propulsion Light Treads Treads Light Treads Leg Aluminum Leg Wheel Armored Wheel Utility Light Armor Plating Device Makeshift Transmission Jammer Storage High-capacity Storage Unit Processor Advanced Visual Processing Unit Hackware Hacking Suite Protection Light Armor Plating Weapon Datajack Energy Gun EM Pulse Gun Energy Cannon Plasma Cannon Ballistic Gun High-powered Shotgun Ballistic Cannon Heavy Assault Cannon Launcher Grenade Launcher Impact Weapon Makeshift Hammer Piercing Weapon Makeshift Spear Special Melee Weapon Datajack Build | -11 -10 -10 -10 -9 -8 ------- Run | Yrd Mat Min Exi Min Mat Slots Evolved 4 | . . . . . 4 Power . | . . . . . . Propulsion . | . . . . . . Utility 4 | . . . . . 4 Weapon . | . . . . . . Parts Attached 75 | 2 9 . 6 . 58 Power 7 | . . . 1 . 6 Engine 6 | . . . 1 . 5 Core 1 | . . . . . 1 Reactor . | . . . . . . Propulsion 13 | 2 1 . 2 . 8 Treads 12 | 2 1 . 2 . 7 Leg . | . . . . . . Wheel 1 | . . . . . 1 Hover . | . . . . . . Flight . | . . . . . . Utility 26 | . 5 . . . 21 Device 4 | . . . . . 4 Storage 6 | . 3 . . . 3 Processor 1 | . . . . . 1 Hackware 2 | . . . . . 2 Protection 13 | . 2 . . . 11 Artifact . | . . . . . . Weapon 29 | . 3 . 3 . 23 Energy Gun 3 | . 1 . 1 . 1 Energy Cannon 8 | . . . . . 8 Ballistic Gun 6 | . 1 . . . 5 Ballistic Cannon 4 | . . . . . 4 Launcher 1 | . 1 . . . . Special Weapon . | . . . . . . Impact Weapon 2 | . . . . . 2 Slashing Weapon . | . . . . . . Piercing Weapon 4 | . . . 1 . 3 Special Melee Weapon 1 | . . . 1 . . Unidentified Prototypes 3 | . . . . . 3 Parts Lost 17 | . 2 . . . 15 Power 2 | . . . . . 2 Propulsion 4 | . . . . . 4 Utility 7 | . . . . . 7 Weapon 4 | . 2 . . . 2 Highest Loss Streak 4 | . 1 . . . 4 To Critical Strikes 1 | . . . . . 1 Average Slot Usage (%) 90 | . 96 85 89 100 83 Engine 11 | . 14 14 14 14 6 Treads 23 | . 28 28 28 28 15 Device 3 | . . . . . 8 Storage 12 | . 14 14 14 14 9 Hackware 3 | . . . . . 10 Protection 13 | . 12 14 14 14 13 Energy Gun 4 | . 23 14 1 . . Impact Weapon 1 | . . . . . 3 Piercing Weapon 5 | . . . 3 14 4 Special Melee Weapon 6 | . . . 13 14 1 Peak Build Rating 38 | 6 8 7 17 18 38 Average Rating 19 | 5 7 7 11 17 33 On Entrance 10 | 6 6 7 7 17 18 Naked Turns . | . . . . . . Heaviest Build 174 | 14 53 50 51 51 174 Greatest Support 42 | 40 40 40 40 40 42 Greatest Overweight (x) 13 | . 1 1 1 1 13 Average Overweight (x) 1 | . . 1 1 1 5 Largest Inventory Capacity 30 | 8 20 20 20 20 30 Average Capacity 22 | 8 14 20 20 20 29 Most Carried 30 | 6 15 16 20 20 30 Average Carried 19 | 4 9 15 17 19 24 Final Capacity 30 | 8 20 20 20 20 30 Final Carried 21 | 3 15 16 20 20 21 Class Distribution -------------------- 63% | Mutant 36% | Hauler-Mutant Dominant Class ---------------- Mutant | -10/Materials Mutant | -10/Mines Mutant | -10/Exiles Mutant | -9/Mines Hauler-Mutant | -8/Materials Resources | -11 -10 -10 -10 -9 -8 ----------- Run | Yrd Mat Min Exi Min Mat Matter Collected 1716 | 181 181 . 161 80 1113 Remotely . | . . . . . . Salvage Created 2695 | . 813 . 225 74 1583 Parts 154 | . 56 . 9 8 81 Haulers Intercepted 4 | . 2 . . . 2 Recyclers Shooed 1 | . . . . . 1 Parts Field Recycled . | . . . . . . Retrieved Matter . | . . . . . . Parts Self-Destructed . | . . . . . . Prevented . | . . . . . . Kills | -11 -10 -10 -10 -9 -8 ------- Run | Yrd Mat Min Exi Min Mat Combat Hostiles Destroyed 43 | . 11 . . . 32 Melee 13 | . . . . . 13 Guns 12 | . 10 . . . 2 Cannons 16 | . . . . . 16 AOE 1 | . 1 . . . . Classes Destroyed 12 | . 7 . . 1 4 Worker 4 | . 1 . . 2 1 Builder 4 | . 1 . . 1 2 Tunneler 1 | . . . . 1 . Hauler 4 | . 2 . . . 2 Recycler 3 | . 1 . . . 2 Operator 2 | . 1 . . . 1 Watcher 5 | . 3 . . . 2 Swarmer 3 | . . . . . 3 Grunt 28 | . 11 . . . 17 Brawler 3 | . . . . . 3 Sentry 8 | . . . . . 8 Hunter 1 | . . . . . 1 Best Kill Streak 6 | . 3 . . 3 6 Combat Bots Only 4 | . 2 . . . 4 Max Kills in Single Turn 2 | . 1 . . 1 2 Gunslinging . | . . . . . . Exploded 1 | . 1 . . . . Melee 1 | . . . . . 1 Uniques/NPCs Destroyed . | . . . . . . Combat | -11 -10 -10 -10 -9 -8 -------- Run | Yrd Mat Min Exi Min Mat Hostile Shots Fired 324 | . 59 . . . 265 Missed 82 | . 15 . . . 67 Damage Taken 3697 | . 558 . . . 3139 Core 672 | . 86 . . . 586 Absorbed by Shields . | . . . . . . Regen/Repaired (Parts) 239 | . . . . . 239 Core Remaining (%) 82 | 100 . . . 65 . Volleys Fired 187 | 2 63 . 24 . 98 Largest 2 | 2 2 . 1 . 2 Hottest 160 | 80 80 . 40 . 160 Shots Fired 264 | 4 115 . 24 . 121 Gun 158 | 4 112 . 24 . 18 Cannon 103 | . . . . . 103 Launcher 3 | . 3 . . . . Special . | . . . . . . Kinetic 104 | . 16 . . . 88 Thermal 33 | . . . . . 33 Explosive 3 | . 3 . . . . Electromagnetic 124 | 4 96 . 24 . . Robot Hit Streak 13 | 1 6 . 10 . 13 Robot Miss Streak 5 | 2 3 . 1 . 5 Penetration Max 1 | . . . . . 1 Secondary Targets 2 | . 2 . . . . Max Gunslinging Chain 1 | . 1 . . . . Shots Hit Robots 214 | 1 62 . 41 4 106 Core Hits 90 | 1 34 . 9 . 46 Critical Kills . | . . . . . . Critical Parts Destroyed . | . . . . . . Critical Strikes 16 | . 1 . . 2 13 Blast 9 | . . . . . 9 Corrupt 1 | . 1 . . . . Impale 6 | . . . . 2 4 Melee Attacks 63 | . . . 21 4 38 Impact 5 | . . . . . 5 Slashing . | . . . . . . Piercing 44 | . . . 7 4 33 Sneak Attacks 18 | . . . 13 4 1 Combat Hostiles 13 | . . . 13 . . Follow-up Attacks 4 | . . . . . 4 Damage Inflicted 5969 | 13 1088 . 711 220 3937 Guns 1377 | 13 861 . 252 . 251 Cannons 2957 | . . . . . 2957 Explosions 294 | . 227 . . . 67 Melee 1331 | . . . 459 220 652 Ramming 10 | . . . . . 10 Kinetic 2648 | . 49 . . . 2599 Thermal 680 | . 71 . . . 609 Explosive 223 | . 156 . . . 67 Electromagnetic 1077 | 13 812 . 252 . . Impact . | . . . . . . Slashing . | . . . . . . Piercing 1331 | . . . 459 220 652 Highest Corruption 4 | . 2 2 2 2 4 Average Corruption 2 | . 2 2 2 2 4 Corruption Purged . | . . . . . . Corruption Blocked . | . . . . . . Effects 68 | . 12 . 33 15 8 Message Errors 16 | . 3 . 8 2 3 Matter Fused 26 | . 3 . 16 6 1 Heat Flow Errors 7 | . 2 . 4 . 1 Energy Discharges 8 | . 1 . 3 3 1 Parts Rejected 1 | . . . . . 1 Data Loss (minor) 5 | . 2 . . 2 1 Data Loss (major) 4 | . 1 . 1 2 . Alerts 1 | . . . 1 . . Overload Shots . | . . . . . . Overflow Damage 313 | . . . 9 174 130 Projectiles 122 | . . . . . 122 Explosions 8 | . . . . . 8 Melee 183 | . . . 9 174 . Knockbacks 14 | . . . . . 14 Impact 1 | . . . . . 1 Kinetic 12 | . . . . . 12 Secondary 1 | . . . . . 1 Self-Inflicted Damage 14 | . 14 . . . . Shots 1 | . 1 . . . . Rammed 1 | . . . . . 1 Targets Rammed 2 | . . . . . 2 Kicked . | . . . . . . Crushed 1 | . . . . . 1 Highest Temperature 408 | 36 408 . 238 . 266 Average Temperature 82 | 20 115 . 54 . 56 Received Heat Transfer 1530 | . 324 . . . 1206 Effects 1 | . 1 . . . . Energy Bleed 1 | . 1 . . . . Siege Activations . | . . . . . . Robots Corrupted 1 | . . . 1 . . Combat Hostiles 1 | . . . 1 . . Parts Fried 3 | . 2 . 1 . . Impact Corruptions . | . . . . . . Robots Melted 1 | . . . . . 1 Combat Hostiles 1 | . . . . . 1 Parts Melted 4 | . . . . . 4 Heat Transferred 1250 | . 50 . . . 1200 Parts Sabotaged . | . . . . . . Parts Stolen . | . . . . . . Parts Stripped . | . . . . . . Power Chain Reactions 2 | . 2 . . . . Alert | -11 -10 -10 -10 -9 -8 ------- Run | Yrd Mat Min Exi Min Mat Peak Influence 632 | . 313 48 . 15 632 Initial 48 | . . 48 . . 5 Average 108 | . 157 48 . . 139 Maximum Alert Level 2 | . 1 . . . 2 Low Security (%) 84 | 100 66 100 . 100 85 Level 1 10 | . 33 . . . 5 Level 2 4 | . . . . . 9 Level 3 . | . . . . . . Level 4 . | . . . . . . Level 5 . | . . . . . . High Security . | . . . . . . Max Security . | . . . . . . Squads Dispatched 10 | . 2 . . . 8 Investigation 4 | . 2 . . . 2 Extermination . | . . . . . . Reinforcement 3 | . . . . . 3 Assault . | . . . . . . Garrison 3 | . . . . . 3 Intercept . | . . . . . . Searches Triggered . | . . . . . . Construction Impeded 2 | . . . . . 2 Haulers Reinforced . | . . . . . . Active Scanning Responses . | . . . . . . Cargo Convoy Interrupts . | . . . . . . Stealth | -11 -10 -10 -10 -9 -8 --------- Run | Yrd Mat Min Exi Min Mat Distress Signals 5 | . . . . . 5 Communications Jammed 103 | . . . . . 103 Distress Signals 103 | . . . . . 103 Times Spotted 72 | . 17 . . . 55 Peak Tracking Total 4 | . 2 . . . 4 Tactical Retreats 5 | . . . . . 5 Traps | -11 -10 -10 -10 -9 -8 ------- Run | Yrd Mat Min Exi Min Mat Traps Triggered 2 | . 2 . . . . Indirectly . | . . . . . . Trap Hack Attempts . | . . . . . . Triggered . | . . . . . . Disarmed . | . . . . . . Reprogrammed . | . . . . . . Reused . | . . . . . . Traps Extracted . | . . . . . . Installed . | . . . . . . Triggered . | . . . . . . Machines | -11 -10 -10 -10 -9 -8 ---------- Run | Yrd Mat Min Exi Min Mat Machines Disabled 3 | . . . . . 3 Max in Single Turn 3 | . . . . . 3 Machines Repaired . | . . . . . . Machines Dismantled . | . . . . . . Machines Sabotaged . | . . . . . . Overloaded Fab Kills . | . . . . . . Hacking | -11 -10 -10 -10 -9 -8 --------- Run | Yrd Mat Min Exi Min Mat Machines Accessed 20 | . 9 . 2 . 9 Terminals 12 | . 7 . . . 5 Fabricators . | . . . . . . Repair Stations 1 | . . . . . 1 Recycling Units 3 | . 2 . . . 1 Scanalyzers 2 | . . . . . 2 Garrison Access . | . . . . . . Total Hacks 83 | . 34 . 5 . 44 Successful 56 | . 20 . 5 . 31 Failed 26 | . 13 . . . 13 Catastrophic 3 | . 2 . . . 1 Database Lockouts 1 | . 1 . . . . Manual 57 | . 30 . 1 . 26 Terminals 56 | . 29 . . . 27 Fabricators . | . . . . . . Repair Stations 2 | . . . . . 2 Recycling Units 7 | . 5 . . . 2 Scanalyzers 13 | . . . . . 13 Garrison Access . | . . . . . . Terminal Hacks 13 | . 4 . 5 . 4 Record 5 | . 1 . 4 . . Robot Analysis 2 | . 2 . . . . Prototype ID Bank 2 | . . . . . 2 Terminal Index 1 | . . . . . 1 Alert Level 2 | . 1 . . . 1 Derelict Proto ID Bank 1 | . . . 1 . . Fabricator Hacks . | . . . . . . Repair Station Hacks 2 | . . . . . 2 Scan Component 1 | . . . . . 1 Repair 1 | . . . . . 1 Recycling Unit Hacks 3 | . 2 . . . 1 Report Inventory 1 | . 1 . . . . Retrieve Components 2 | . 1 . . . 1 Scanalyzer 12 | . . . . . 12 Insert Component 6 | . . . . . 6 Analyze 6 | . . . . . 6 Garrison Access Hacks . | . . . . . . Unauthorized Hacks 26 | . 14 . . . 12 Terminals 23 | . 12 . . . 11 Assimilate 7 | . 4 . . . 3 Botnet 11 | . 6 . . . 5 Disrupt 1 | . . . . . 1 Operators 4 | . 2 . . . 2 Fabricators . | . . . . . . Repair Stations . | . . . . . . Recycling Units 3 | . 2 . . . 1 Tunnel 3 | . 2 . . . 1 Scanalyzers . | . . . . . . Garrison Access . | . . . . . . Data Cores Recovered 1 | . 1 . . . . Used . | . . . . . . Hacking Detections 15 | . 8 . . . 7 Full Trace Events 2 | . 1 . . . 1 Feedback Events . | . . . . . . Feedback Blocked . | . . . . . . Robot Schematics Acquired . | . . . . . . Robots Built . | . . . . . . Authchips . | . . . . . . Time . | . . . . . . Total Robot Build Rating . | . . . . . . Part Schematics Acquired 5 | . . . . . 5 Parts Built . | . . . . . . Authchips . | . . . . . . Time . | . . . . . . Total Part Build Rating . | . . . . . . Parts Repaired 1 | . . . . . 1 Time 38 | . . . . . 38 Parts Recycled . | . . . . . . Recycled Matter . | . . . . . . Retrieved Matter . | . . . . . . Retrieved Components 20 | . 10 . . . 10 Parts Scanalyzed 6 | . . . . . 6 Part Schematics Acquired 5 | . . . . . 5 Parts Damaged . | . . . . . . Bothacking | -11 -10 -10 -10 -9 -8 ------------ Run | Yrd Mat Min Exi Min Mat Used RIF Installer . | . . . . . . Robots Hacked . | . . . . . . Non-combat . | . . . . . . Combat . | . . . . . . Robot Hacks Applied . | . . . . . . Relay Couplers Released . | . . . . . . Fabnet Peak Effective % . | . . . . . . Robots Rewired 3 | . . . 3 . . Allies Hacked . | . . . . . . Hacks Repelled . | . . . . . . Allies | -11 -10 -10 -10 -9 -8 -------- Run | Yrd Mat Min Exi Min Mat Total Allies 3 | . . . 3 . . Largest Group 3 | . . . 3 3 3 Highest-Rated Group 24 | . . . 24 24 24 Highest-Rated Ally 8 | . . . 8 8 8 Total Orders 2 | . . . 2 . . STAY 1 | . . . 1 . . FOLLOW 1 | . . . 1 . . Ally Attacks 36 | . . . . . 36 Total Damage 232 | . . . . . 232 Kills 3 | . . . . . 3 Allies Corrupted . | . . . . . . Allies Melted . | . . . . . . Intel | -11 -10 -10 -10 -9 -8 ------- Run | Yrd Mat Min Exi Min Mat Robot Analysis Total 2 | . 2 . . . . Derelict Logs Recovered 3 | . . 1 . 2 . Drone Launches . | . . . . . . Drone Recoveries . | . . . . . . Exploration | -11 -10 -10 -10 -9 -8 ------------- Run | Yrd Mat Min Exi Min Mat Turns Passed 8103 | 11 1297 114 2358 1380 2943 Spaces Moved 2766 | 1 579 48 938 571 629 Core . | . . . . . . Treads 2593 | 1 579 48 938 571 456 Legs . | . . . . . . Wheels 173 | . . . . . 173 Hover . | . . . . . . Flight . | . . . . . . Fastest Speed 160 | 160 160 240 240 240 240 Average Speed 262 | 160 189 240 240 240 383 Slowest Speed 480 | 160 240 240 240 240 480 Overloaded Moves . | . . . . . . Propulsion Burnouts . | . . . . . . Robots Hopped . | . . . . . . Cave-ins Triggered . | . . . . . . Exploration Rate (%) 56 | 2 91 11 92 97 46 Regions Visited 5 Branch Regions 3 Pre-discovered Areas 4 | . 2 . 1 . 1 Known Exits Taken 1 | . . . . 1 . Unknown Exits Taken 4 | 1 1 1 1 . . Scrap Searched 1 | . . . . 1 . Spaces Dug 3 | . . . . . 3 Terrain Destroyed 111 | . 23 . . . 88 Melee . | . . . . . . Projectile 43 | . . . . . 43 AOE 68 | . 23 . . . 45 Terrain Rammed . | . . . . . . Walls Destroyed . | . . . . . . Machines Disabled . | . . . . . . Actions | -11 -10 -10 -10 -9 -8 --------- Run | Yrd Mat Min Exi Min Mat Total 3267 | 9 665 48 1009 576 960 Wait 85 | . . . 2 . 83 Move 2761 | . 578 47 937 570 629 Hop . | . . . . . . Pick Up 47 | 1 12 . 9 1 24 Fast Attach 12 | . 2 . . . 10 Attach 34 | 2 3 . 2 . 27 Detach 14 | . 1 1 . . 12 Swap 29 | . 4 . 4 . 21 Drop 35 | 4 2 . 7 1 21 Fire 187 | 2 63 . 24 . 98 Melee 58 | . . . 21 4 33 Ram . | . . . . . . Kick . | . . . . . . Crush 2 | . . . . . 2 Escape Stasis . | . . . . . . Rewire 3 | . . . 3 . . Trap . | . . . . . . Miscellaneous . | . . . . . . Route ------- -11/Scrapyard -10/Materials (discovered 4 exits: [*Mat x3] / [*Min]) -10/Mines -10/Exiles -9/Mines (discovered 2 exits: *Mat x2) -8/Materials (discovered 3 exits: *Fac x2 / [*Sto]) History --------- Turn | Location | Event 12 | -11/Scrapyard | Discovered new exit (range 0) 12 | -11/Scrapyard | Entered Materials 259 | -10/Materials | Discovered new exit (range 5) 313 | -10/Materials | Build established: Mutant 436 | -10/Materials | Discovered new exit (range 14) 470 | -10/Materials | Central database locked down 692 | -10/Materials | Discovered new exit (range 8) 1052 | -10/Materials | Discovered new exit (range 16) 1309 | -10/Materials | Entered Mines 1317 | -10/Mines | Learned 2 Materials zone layouts 1413 | -10/Mines | Deemed a non-threat by the Exiles lab entrance 1413 | -10/Mines | Discovered new exit (range 5) 1423 | -10/Mines | Entered Exiles 1423 | -10/Exiles | Found Exiles lab destroyed 1836 | -10/Exiles | Opened EX-Vault 1850 | -10/Exiles | Found XL Autogun Array 2088 | -10/Exiles | Learned location of Zion (-7) 3754 | -10/Exiles | Discovered new exit (range 14) 3781 | -10/Exiles | Entered Mines 3781 | -9/Mines | Accompanied by 3 allies 3863 | -9/Mines | Identified exit to Materials 4367 | -9/Mines | Discovered exit to Materials (range 10) 4832 | -9/Mines | Learned Materials stockpile data 5019 | -9/Mines | Found a damaged Exp. Sensor Array with a note attached 5025 | -9/Mines | Found Prototype Device 5161 | -9/Mines | Entered Materials 5161 | -8/Materials | Accompanied by 3 allies 5161 | -8/Materials | Evolved 4 slots: Utility x4 5162 | -8/Materials | Identified exit to Factory 5164 | -8/Materials | Identified Exp. Sensor Array 5474 | -8/Materials | Build established: Hauler-Mutant 6093 | -8/Materials | Discovered exit to Factory (range 16) 6532 | -8/Materials | Lost 4 parts (1p3u) 6725 | -8/Materials | Repaired Hvy. Assault Cannon 6819 | -8/Materials | Discovered new exit (range 15) 7710 | -8/Materials | Garrison activated, responded to threat 7848 | -8/Materials | Core integrity fell below 50% 8098 | -8/Materials | Core integrity fell below 20% 8104 | -8/Materials | Destroyed by H-61 Shepherd with Heavy Assault Cannon Last Messages --------------- 08084_ System corrupted: Component data lost. 08084_ Penetrated by Slug. 08084_ Electrolysis Chamber disabled. 08088_ Y-45 Defender heat short circuits Imp. Ion Engine. 08089_ Electrolysis Chamber disabled. 08092_ Beam Rifle melted. 08092_ Y-45 Defender destroyed. 08092_ K-01 Serf collects debris. 08098_ Penetrated by Slug. 08098_ Plasma Cannon destroyed. 08098_ Lgt. Treads destroyed. 08099_ Acquired 3 matter. 08099_ K-01 Serf collects debris. 08101_ Y-45 Defender heat damages Broken Imp. Ion Engine, Hvy. Assault Rifle, Heat Sink. 08102_ Y-45 Defender heat short circuits Lgt. Treads. 08102_ Penetrated by Slug. 08102_ Melted Broken Lgt. Treads. 08103_ Y-45 Defender critical meltdown. 08103_ Lgt. Treads melted. 08103_ K-01 Serf collects debris. Map ----- +----------------------------------------------------+ | ????????????????# # ### ###### ### | | ????????#????#### # | | ???????####### ## # | | ???????# % # | | ???????# ! "" ## ### | | ???????#%! % """## # | | ???????# S"## ] # | | ???????# ## # #####+ # | | ???????# """ #" = | | ???????#! """ ]## %= % | | ?????### """ ## ####% % | | ###### # %% ## #??# % | | # #+###+##### #??# ##%#"""" | | # """ #[# #??# # "# | | # """=# # #??# # ## | | # """ # #### ######??# # ## | | # # ##?# %##??????# # ## | | # """ # #### %######??# ########+ | | # """ + % #??# ??# | | # """ # % % #??#^ ??#] | | # ##+###r#### #??# ??# " " | | # """ ## #?? #??? ??# "G" | | # T" ##""" #???#??? ??#] """ | | # """ ##""" #??????? ??# | | # ;#%""[ #??????? ??###### | | ########%@%%= k # #?# # | | ???????##""=% ; #?# + | | ????????#""" ; #?# # """ | | ????????#""" / ; H #?# # """ | | #######?# ## ##?# # """ | | # #?# ## #??# # | | # #?# ## #??# ###+### | | # #?## ####;## #??# | | # #??###???### ##?# | | # """ ########### #?# | | # """ + #?# ####### | | # """ # #?# #?????? | | # ##+#####+## #?# ####### | | # """ ## #######?# # | | # """ ## ######### # """ | | # """ ## # # # """ | | # ## # # # """ | | ######## "Y" # + + | | ???????# """ # # # | | ???????# # # ####### | | ?????################### ####### | | ?????# #??# | | ?????# < #??# | | ?????# #??# | | ?????############ #??# ####### | +----------------------------------------------------+ Best States ------------- Heat Dissipation 45 Energy Generation 14 Energy Capacity 275 Matter Stores 300 Matter Capacity 300 Sight Range 20 Terrain Scan Density 10 Jamming Range 14 Armor Coverage 600 Evasion (%) 40 Recoil Reduction 2 Offensive Hacking 10 Defensive Hacking 10 Item Schematics ----------------- Cargo Storage Unit | -8/Materials | Scanalyzed Hvy. Assault Cannon | -8/Materials | Scanalyzed Hacking Suite | -8/Materials | Scanalyzed Exp. Sensor Array | -8/Materials | Scanalyzed Adv. Visual Processing Unit | -8/Materials | Scanalyzed Robot Schematics ------------------ None Fabricated ------------ Nothing Alien Tech Used ----------------- None Achievements -------------- None Challenges ------------ None Game ------ Seed RecoilPhysicsTrap Manual? 0 Play Time 00:39:34 Cumulative 84.0 hours Start 2024.11.15 @ 18:29:31 End 2024.11.15 @ 19:07:31 Sessions 1 Manual Loads 0 Difficulty Rogue Special Mode None Game No. 146 Rogue 146 Adventurer 0 Explorer 0 Win Type - Total 0 Types 0/0/0/0/0/0/0/0/0 Lore% 41 Gallery% 36 Achievement% 34 Wizard Run 0 Options --------- Layout 0 ASCII 0 Keyboard 0 Movement Mouse Keybinds 0 Fullscreen 1 Font 24/Smallcaps Map View 91x25 Zoom Use 87% Tactical HUD 1 Map Filters NONE Filters NONE Steam 1 RUN: d7a86a3b-1053-47da-add0-d94a32d68db3